bitfinex-derivatives/quotes_ETHF0:USTF0_20251213
["timestamp","ask_amount","ask_price","bid_price","bid_amount"]
[1765640782551,12.8226,3107.6,3107.5,17.68328]
[1765640782745,12.8226,3107.6,3107.5,15.08888]
[1765640782950,12.8226,3107.6,3107.5,0.16088]
[1765640783149,12.8226,3107.6,3107.5,15.08888]
[1765640783746,12.8226,3107.6,3107.5,0.16088]
[1765640783960,14.02842707,3107.6,3107.5,0.16088]
[1765640785054,14.02842707,3107.6,3107.5,0.49209045]
[1765640785245,4.9821,3107.1,3107.0,2.5954]
[1765640785451,4.98622661,3107.1,3107.0,17.5254]
[1765640785753,5.30242661,3107.1,3107.0,21.4351]
[1765640786554,5.30242661,3107.1,3107.0,21.59601]
[1765640787155,5.30242661,3107.1,3107.0,21.92799391]
[1765640787361,7.62422661,3107.1,3107.0,6.99799391]
[1765640787547,7.62422661,3107.1,3107.0,23.13482098]
[1765640788356,5.30242661,3107.1,3107.0,23.13662335]
[1765640788546,7.62422661,3107.1,3107.0,23.13662335]
[1765640788750,7.62422661,3107.1,3107.0,23.13562335]
[1765640789550,10.01572661,3107.1,3107.0,0.49289391]
[1765640789757,11.22335605,3107.1,3107.0,0.49289391]
[1765640790759,4.7133,3106.5,3106.4,3.69192944]
[1765640790959,2.3218,3106.5,3106.4,6.11242944]
[1765640791159,7.8439,3106.5,3106.4,6.11242944]
[1765640791364,10.2354,3106.5,3106.4,3.69192944]
[1765640791561,10.2354,3106.5,3106.4,3.85286944]
[1765640792156,10.2354,3106.5,3106.4,5.39890767]
[1765640792365,5.5221,3106.5,3106.4,6.60653711]
[1765640792563,7.8439,3106.5,3106.4,6.60653711]
[1765640792956,7.8439,3106.5,3106.4,5.39890767]
[1765640793155,10.2354,3106.5,3106.4,1.70173711]
[1765640794565,10.2354,3106.5,3106.4,4.18603711]
[1765640795766,7.8439,3106.5,3106.4,6.60653711]
[1765640795955,10.2354,3106.5,3106.4,4.18603711]
[1765640796567,10.2354,3106.5,3106.4,6.60653711]
[1765640797362,7.8439,3106.5,3106.4,6.60653711]
[1765640797555,7.8439,3106.5,3106.4,21.54553711]
[1765640797761,7.8439,3106.5,3105.7,6.11242944]
[1765640797762,4.7133,3105.8,3105.7,6.11242944]
[1765640797960,4.7133,3105.8,3105.7,20.00378]
[1765640798259,4.7133,3105.8,3105.7,17.58328]
[1765640798559,12.3734,3105.8,3105.7,0.16098]
[1765640798959,12.3734,3105.8,3105.7,0.48747912]
[1765640799164,7.6601,3105.8,3105.7,6.59990856]
[1765640800268,9.9819,3105.8,3105.7,5.39227912]
[1765640800468,9.9819,3105.8,3105.7,6.59990856]
[1765640801272,9.9819,3105.8,3105.7,5.39227912]
[1765640801463,9.9819,3105.8,3105.7,6.59990856]
[1765640801865,12.3734,3105.8,3105.7,6.59990856]
[1765640802773,9.9819,3105.8,3105.7,6.59990856]
[1765640803268,9.9819,3105.8,3105.7,5.39227912]
[1765640803473,9.9819,3105.8,3105.7,6.59990856]
[1765640803667,12.3734,3105.8,3105.7,6.59990856]
[1765640803872,12.3734,3105.8,3105.7,1.69510856]
[1765640804067,12.3734,3105.8,3105.7,0.48747912]
[1765640804770,12.3734,3105.8,3105.7,2.97177912]
[1765640806174,12.3734,3105.8,3105.7,17.91677912]
[1765640806470,9.9819,3105.8,3105.7,20.33727912]
[1765640806674,7.6601,3105.8,3105.7,20.33727912]
[1765640806874,12.3734,3105.8,3105.7,20.33727912]
[1765640807476,9.9819,3105.8,3105.7,20.33727912]
[1765640808466,7.6601,3105.8,3105.7,25.23703904]
[1765640808670,7.6601,3105.8,3105.7,24.0294096]
[1765640809471,7.6601,3105.8,3105.7,25.23703904]
[1765640809667,7.6601,3105.8,3105.7,24.0294096]
[1765640810573,7.6601,3105.8,3105.7,25.23703904]
[1765640811366,3.2078,3106.4,3105.7,20.17125904]
[1765640811577,3.2078,3106.4,3106.3,6.27337944]
[1765640811775,3.2078,3106.4,3106.3,21.22037944]
[1765640812177,7.6945,3106.4,3106.3,21.22037944]
[1765640812381,7.6945,3106.4,3106.3,20.01275]
[1765640812579,7.6945,3106.4,3106.3,21.22037944]
[1765640813588,7.6945,3106.4,3106.3,25.96719453]
[1765640814188,4.4867,3106.4,3106.3,25.96719453]
[1765640814486,4.4867,3106.4,3106.3,31.96719453]
[1765640814884,4.4867,3106.4,3106.3,66.76719453]
[1765640815180,4.4867,3106.4,3106.3,72.76719453]
[1765640816179,3.21262376,3106.8,3106.7,5.42882]
[1765640816477,3.21262376,3106.8,3106.7,21.58344944]
[1765640816880,7.50652376,3106.8,3106.7,21.58344944]
[1765640818586,3.21262376,3106.8,3106.7,21.58344944]
[1765640818785,16.37682376,3106.8,3106.7,21.58344944]
[1765640818974,19.09672376,3106.8,3106.7,21.58344944]
[1765640820286,21.86032376,3106.8,3106.7,21.58344944]
[1765640820484,21.86032376,3106.8,3106.7,0.16092]
[1765640820684,21.86032376,3106.8,3106.7,15.10492]
[1765640821079,21.86032376,3106.8,3106.7,0.16092]
[1765640821274,21.86032376,3106.8,3106.7,15.10492]
[1765640821673,21.86032376,3106.8,3106.7,0.16092]
[1765640821881,21.86032376,3106.8,3106.7,15.10492]
[1765640822679,21.86032376,3106.8,3106.7,20.37282]
[1765640822680,16.37682376,3106.8,3106.7,20.37282]
[1765640824088,16.37682376,3106.8,3106.7,21.58044624]
[1765640830182,16.37682376,3106.8,3106.7,24.94585123]
[1765640831188,12.43733595,3106.8,3106.7,23.73822499]
[1765640831389,15.15723595,3106.8,3106.7,8.79422499]
[1765640831586,15.15723595,3106.8,3106.7,24.94385123]
[1765640831994,15.15723595,3106.8,3106.7,24.94389464]
[1765640832594,12.43733595,3106.8,3106.7,24.94389464]
[1765640834992,2.14127557,3106.8,3106.7,24.94389464]
[1765640835696,2.72885037,3107.1,3107.0,5.42881]
[1765640835997,0.00895037,3107.1,3107.0,10.08802916]
[1765640836191,5.32745037,3107.1,3107.0,10.08802916]
[1765640839997,5.32745037,3107.1,3107.0,25.02702916]
[1765640841506,8.04735037,3107.1,3107.0,25.02702916]
[1765640845198,10.81095037,3107.1,3107.0,25.02702916]
[1765640845905,8.04735037,3107.1,3107.0,25.02702916]
[1765640851413,11.41035037,3107.1,3107.0,3.61245951]
[1765640851610,14.61815037,3107.1,3107.0,15.09491]
[1765640852910,14.61815037,3107.1,3107.0,0.16091]
[1765640853112,14.61815037,3107.1,3107.0,15.09491]
[1765640856616,14.61815037,3107.1,3107.0,0.16091]
[1765640856808,6.0829,3106.6,3106.5,5.74666077]
[1765640857004,7.9556,3106.5,3106.4,0.00482376]
[1765640857709,16.0026,3106.5,3106.4,0.00482376]
[1765640858611,16.0026,3106.5,3106.4,0.16576376]
[1765640863520,6.0829,3105.8,3105.7,6.62919912]
[1765640863718,6.0829,3105.8,3105.7,18.50779912]
[1765640863914,14.3089,3105.8,3105.7,18.50779912]
[1765640864312,14.3089,3105.8,3105.7,21.56619912]
[1765640864511,14.3089,3105.8,3105.7,21.72717912]
[1765640865610,14.3089,3105.8,3105.7,18.66877912]
[1765640866523,14.3089,3105.8,3105.7,0.48747912]
[1765640866819,15.51726418,3105.8,3105.7,0.48747912]
[1765640867816,15.51726418,3105.8,3105.1,40.8]
[1765640867817,6.0829,3105.2,3105.1,40.8]
[1765640868014,9.2907,3105.2,3105.1,55.745]
[1765640868219,19.3987,3105.2,3105.1,55.745]
[1765640868516,9.2907,3105.2,3105.1,55.745]
[1765640868719,22.6085,3105.2,3105.1,55.745]
[1765640868914,22.6085,3105.2,3105.1,21.2477]
[1765640869615,22.6085,3105.2,3105.1,21.40871]
[1765640869818,22.6085,3105.2,3105.1,21.75871617]
[1765640871114,1.8727,3105.0,3104.3,5.74666077]
[1765640871318,1.8727,3104.5,3104.4,15.01610418]
[1765640871619,0.00251587,3104.5,3104.4,59.40352483]
[1765640872625,0.00251587,3104.5,3104.4,59.76166241]
[1765640873320,0.00251587,3104.5,3104.4,68.57402659]
[1765640873925,0.00251587,3104.5,3104.4,67.36566241]
[1765640874125,4.91391587,3104.5,3104.4,67.36566241]
[1765640874318,0.00251587,3104.5,3104.4,67.36566241]
[1765640874827,0.00251587,3104.5,3104.4,67.36966241]
[1765640875922,0.00251587,3104.5,3104.4,51.20929823]
[1765640876127,4.60531587,3104.5,3104.4,67.37066241]
[1765640876427,7.59621587,3104.5,3104.4,67.37066241]
[1765640877028,5.8014,3103.9,3103.8,3.2078]
[1765640877230,5.8014,3103.9,3103.8,21.31257]
[1765640877531,5.8014,3103.9,3103.8,62.11257]
[1765640877722,13.5441,3103.9,3103.8,62.46298724]
[1765640879125,13.5441,3103.9,3103.8,44.51928724]
[1765640879330,5.8014,3103.4,3103.3,3.2078]
[1765640879531,5.8014,3103.4,3103.3,18.3249]
[1765640879734,14.0308,3103.4,3103.3,59.1249]
[1765640880031,14.0308,3103.4,3103.3,18.3259]
[1765640880231,8.2294,3103.4,3103.3,28.24890018]
[1765640880533,8.2294,3103.4,3103.3,69.04890018]
[1765640881121,9.42009407,3103.4,3103.3,13.29190018]
[1765640881326,0.00483177,3103.7,3103.6,6.20049]
[1765640881528,0.00483177,3103.7,3103.6,7.40885418]
[1765640881826,0.00483177,3103.7,3103.6,12.32094459]
[1765640882424,5.27506306,3103.8,3103.7,6.20048]
[1765640882618,3.2078,3104.3,3103.7,6.20048]
[1765640882619,2.87229243,3104.3,3104.2,1.36065]
[1765640882828,1.79481587,3104.5,3104.4,1.36064]
[1765640883031,3.2078,3104.7,3104.6,2.03963]
[1765640883230,7.6741,3105.0,3104.9,1.8786]
[1765640883443,7.6741,3105.0,3104.9,3.08696418]
[1765640883844,20.2937,3105.0,3104.9,3.08696418]
[1765640884031,20.2937,3105.0,3104.9,3.24798418]
[1765640884236,20.29727265,3105.0,3104.9,3.25041781]
[1765640884835,12.62317265,3105.0,3104.9,3.25041781]
[1765640885039,17.22597265,3105.0,3104.9,3.25041781]
[1765640885538,12.62317265,3105.0,3104.9,3.25041781]
[1765640885740,12.62317265,3105.0,3104.9,6.89321248]
[1765640886042,0.00357265,3105.0,3104.9,11.30937666]
[1765640886243,0.00483177,3105.3,3105.2,0.161]
[1765640886443,0.00483177,3105.3,3105.2,16.35036418]
[1765640886642,0.00483177,3105.3,3105.2,19.96736293]
[1765640887141,5.23762158,3105.3,3105.2,19.96736293]
[1765640887736,5.23762158,3105.3,3105.2,23.17992711]
[1765640888039,4.88247158,3105.3,3105.2,22.8763414]
[1765640888234,5.0001,3106.0,3105.9,0.16097]
[1765640888429,10.8015,3106.0,3105.9,15.14197]
[1765640888837,11.7712,3106.0,3105.9,15.14197]
[1765640889345,8.96325873,3106.0,3105.9,15.14197]
[1765640890442,14.76465873,3106.0,3105.9,18.60576261]
[1765640890636,14.76465873,3106.0,3105.9,15.14197]
[1765640895545,8.96325873,3106.0,3105.9,15.14197]
[1765640896138,11.77375873,3106.0,3105.9,15.14197]
[1765640896944,14.76465873,3106.0,3105.9,0.16097]
[1765640897143,14.76465873,3106.0,3105.9,15.13697]
[1765640904958,14.76465873,3106.0,3105.9,0.16097]
[1765640905858,8.5528,3105.2,3105.1,40.8]
[1765640906055,8.5528,3105.2,3105.1,55.775]
[1765640906861,8.5528,3105.2,3105.1,55.93601]
[1765640907465,14.9945,3105.2,3105.1,55.93601]
[1765640908361,6.4417,3105.2,3105.1,55.93601]
[1765640908559,6.4417,3105.2,3105.1,59.38597151]
[1765640908956,14.9945,3105.2,3105.1,59.38597151]
[1765640909160,14.9945,3105.2,3105.1,55.93601]
[1765640909964,6.4417,3105.2,3105.1,57.14498566]
[1765640911159,6.4417,3105.2,3105.1,62.05352718]
[1765640911966,6.4417,3105.2,3105.1,60.84455152]
[1765640913068,10.8146,3105.2,3105.1,60.84455152]
[1765640913863,6.4417,3105.2,3105.1,60.84455152]
[1765640915372,10.8146,3105.2,3105.1,60.84455152]
[1765640915972,14.9945,3105.2,3105.1,60.84455152]
[1765640916173,14.9945,3105.2,3105.1,16.34498566]
[1765640916772,14.9945,3105.2,3105.1,15.13601]
[1765640917078,14.9945,3105.2,3105.1,16.34498566]
[1765640920079,6.4417,3105.2,3105.1,16.34498566]
[1765640920577,10.8146,3105.2,3105.1,16.34498566]
[1765640921277,10.8146,3105.2,3105.1,15.13601]
[1765640921578,14.9945,3105.2,3105.1,16.34498566]
[1765640922875,14.9945,3105.2,3105.1,15.13601]
[1765640923182,14.9945,3105.2,3105.1,16.34498566]
[1765640924680,14.9945,3105.2,3105.1,1.36998566]
[1765640924879,14.9945,3105.2,3105.1,16.33998566]
[1765640925278,6.4417,3105.2,3105.1,16.33998566]
[1765640927577,6.4417,3105.2,3105.1,21.16067495]
[1765640927982,6.4417,3105.2,3105.1,61.96067495]
[1765640928183,6.4417,3105.2,3105.1,67.70733572]
[1765640929872,6.4417,3105.2,3105.1,61.96067495]
[1765640930883,6.4417,3105.2,3105.1,61.96029115]
[1765640932681,6.4417,3105.2,3105.1,65.16809115]
[1765640933182,2.4501,3105.5,3105.4,0.16099]
[1765640933385,2.4501,3105.5,3105.4,16.33577376]
[1765640933582,2.4501,3105.5,3105.4,19.93267977]
[1765640933880,7.1232,3105.5,3105.4,19.93267977]
[1765640934784,15.676,3105.5,3105.4,24.50970448]
[1765640935079,15.676,3105.5,3105.4,25.71848824]
[1765640935282,11.0029,3105.5,3105.4,10.75148824]
[1765640935481,8.3893,3105.5,3105.4,25.71748824]
[1765640936074,12.7189,3105.5,3105.4,25.71748824]
[1765640937787,8.3893,3105.5,3105.4,25.71748824]
[1765640938487,12.7189,3105.5,3105.4,25.71748824]
[1765640938879,12.7189,3105.5,3105.4,19.93267977]
[1765640939586,12.7189,3105.5,3105.4,25.71748824]
[1765640939885,16.8796,3105.5,3105.4,25.71748824]
[1765640940689,16.8796,3105.5,3105.4,9.54270448]
[1765640940875,16.8796,3105.5,3105.4,20.91079847]
[1765640941380,16.8796,3105.5,3105.4,15.12599]
[1765640943878,16.8796,3105.5,3105.4,16.33477376]
[1765640944788,16.8796,3105.5,3105.4,15.12499]
[1765640945689,16.8796,3105.5,3105.4,0.16099]
[1765640945880,16.8796,3105.5,3105.4,15.12799]
[1765640946886,20.0874,3105.5,3105.4,15.12799]
[1765640947592,15.9267,3105.5,3105.4,15.12799]
[1765640947880,11.5971,3105.5,3105.4,15.12799]
[1765640948181,11.5971,3105.5,3105.4,18.80264489]
[1765640948580,8.3893,3105.5,3105.4,18.80264489]
[1765640948787,8.3893,3105.5,3105.4,20.01142865]
[1765640948986,8.3893,3105.5,3105.4,18.80264489]
[1765640949490,8.3893,3105.5,3105.4,24.58745336]
[1765640950290,8.3893,3105.5,3105.4,18.80264489]
[1765640950589,2.4501,3105.5,3105.4,18.80264489]
[1765640950790,10.0278,3105.5,3105.4,18.80264489]
[1765640951990,10.0278,3105.5,3105.4,3.83564489]
[1765640952194,10.0278,3105.5,3105.4,18.80164489]
[1765640952894,18.5181,3105.5,3105.4,3.83564489]
[1765640953191,18.5181,3105.5,3105.4,0.16099]
[1765640953389,18.5181,3105.5,3105.4,15.12699]
[1765640953793,18.5181,3105.5,3105.4,16.33577376]
[1765640953992,18.5181,3105.5,3105.4,15.12699]
[1765640954180,18.5181,3105.5,3105.4,0.16099]
[1765640954382,8.4903,3105.2,3105.1,2.82660179]
[1765640954691,8.4903,3105.2,3105.1,16.13060179]
[1765640954895,18.3339,3105.2,3105.1,16.13060179]
[1765640955488,18.3339,3105.2,3105.1,2.98761179]
[1765640955691,18.3339,3105.2,3105.1,15.12701]
[1765640956394,9.8436,3105.2,3105.1,22.44481]
[1765640957893,14.1732,3105.2,3105.1,22.44481]
[1765640960504,9.8436,3105.2,3105.1,23.653838]
[1765640960794,9.8436,3105.2,3105.1,27.34938434]
[1765640960995,9.8436,3105.2,3105.1,30.55718434]
[1765640961197,9.8436,3105.2,3105.1,71.35718434]
[1765640961500,6.12445873,3106.0,3105.9,0.16097]
[1765640961687,6.12445873,3106.0,3105.9,16.336998]
[1765640961893,12.90715873,3106.0,3105.9,16.336998]
[1765640962087,17.06785873,3106.0,3105.9,16.336998]
[1765640962896,17.06785873,3106.0,3105.9,57.136998]
[1765640963702,12.90715873,3106.0,3105.9,57.136998]
[1765640964005,17.06785873,3106.0,3105.9,55.92797]
[1765640970708,17.06785873,3106.0,3105.9,40.96097]
[1765640970910,17.06785873,3106.0,3105.9,55.92197]
[1765640971205,12.90715873,3106.0,3105.9,55.92197]
[1765640971709,18.02455873,3106.0,3105.9,55.92197]
[1765640973311,18.02455873,3106.0,3105.9,40.96097]
[1765640973512,18.02455873,3106.0,3105.9,15.12097]
[1765640974906,12.90715873,3106.0,3105.9,15.12097]
[1765640975208,8.57755873,3106.0,3105.9,15.12097]
[1765640977115,18.66495873,3106.0,3105.9,15.12097]
[1765640977314,18.66495873,3106.0,3105.9,55.92097]
[1765640977608,18.66495873,3106.0,3105.9,55.92197]
[1765640979115,8.57755873,3106.0,3105.9,55.92197]
[1765640979509,13.54755873,3106.0,3105.9,55.92197]
[1765640979709,18.66495873,3106.0,3105.9,55.92197]
[1765640980921,18.66495873,3106.0,3105.9,0.16097]
[1765640981213,18.66495873,3106.0,3105.9,15.11997]
[1765640983909,18.66495873,3106.0,3105.9,16.32835309]
[1765640984110,18.66495873,3106.0,3105.9,1.36935309]
[1765640984310,18.66495873,3106.0,3105.9,16.32835309]
[1765640985920,18.66495873,3106.0,3105.9,1.36935309]
[1765640986119,18.66495873,3106.0,3105.9,16.32735309]
[1765640987416,18.66495873,3106.0,3105.9,1.36935309]
[1765640987616,18.66495873,3106.0,3105.9,16.32635309]
[1765640989620,18.66495873,3106.0,3105.9,1.36935309]
[1765640989816,18.66495873,3106.0,3105.9,16.32635309]
[1765640990009,18.66495873,3106.0,3105.9,0.16097]
[1765640990209,18.66495873,3106.0,3105.9,14.956]
[1765640990715,10.0874,3105.7,3105.6,14.48598]
[1765640990920,13.2952,3105.7,3105.6,14.48598]
[1765640991321,13.2952,3105.7,3105.6,0.16098]
[1765640991520,10.0874,3105.2,3105.1,16.92596695]
[1765640991717,10.0874,3105.2,3105.1,26.01296695]
[1765640992415,10.0874,3105.2,3105.1,20.23528309]
[1765640992611,10.0874,3105.2,3105.1,20.39629309]
[1765640992813,13.4855,3105.2,3105.1,20.39629309]
[1765640993216,8.5155,3105.2,3105.1,20.39629309]
[1765640995524,13.4855,3105.2,3105.1,20.39629309]
[1765640995725,18.5622,3105.2,3105.1,20.39629309]
[1765640997629,18.5622,3105.2,3105.1,26.26529309]
[1765640999025,13.4855,3105.2,3105.1,26.26529309]
[1765640999529,18.5622,3105.2,3105.1,26.26429309]
[1765641001237,18.5622,3105.2,3105.1,21.14169309]
[1765641001937,18.5622,3105.2,3105.1,26.25059309]
[1765641002330,18.5622,3105.2,3105.1,16.32539309]
[1765641002525,18.5622,3105.2,3105.1,21.36099772]
[1765641002731,8.5155,3105.2,3105.1,10.30481]
[1765641002930,18.8953,3105.2,3105.1,26.46989772]
[1765641003136,13.6414,3105.0,3104.9,1.5957114]
[1765641003336,4.47068772,3105.0,3104.7,5.686]
[1765641003534,13.5876,3104.8,3104.7,5.686]
[1765641003929,3.2078,3104.8,3104.7,15.99083]
[1765641004136,15.0461,3104.8,3104.7,19.71654127]
[1765641004630,11.8383,3104.8,3104.7,19.71654127]
[1765641005134,5.94809863,3104.8,3104.7,19.71654127]
[1765641005331,5.94809863,3104.8,3104.7,25.71654127]
[1765641005531,3.2078,3105.2,3104.7,25.71654127]
[1765641005532,3.2078,3105.2,3105.1,10.30481]
[1765641005728,3.2078,3105.2,3105.1,67.27689772]
[1765641005930,3.2078,3105.2,3105.1,70.86575038]
[1765641006538,9.3012,3105.2,3105.1,70.86575038]
[1765641008542,6.0934,3105.2,3105.1,70.86575038]
[1765641010137,6.0934,3105.2,3105.1,72.0748381]
[1765641016041,6.0934,3105.2,3105.1,72.07415106]
[1765641019138,6.0934,3105.2,3105.1,57.11115106]
[1765641019339,6.0934,3105.2,3105.1,72.06915106]
[1765641019940,6.0934,3105.2,3105.1,77.84289739]
[1765641020649,6.0934,3105.2,3105.1,62.88489739]
[1765641020849,6.0934,3105.2,3105.1,77.84289739]
[1765641020850,11.3965,3105.2,3105.1,77.84289739]
[1765641021550,11.3965,3105.2,3105.1,57.11115106]
[1765641021744,11.3965,3105.2,3105.1,72.06815106]
[1765641023243,16.4732,3105.2,3105.1,72.06815106]
[1765641024741,11.3965,3105.2,3105.1,72.06815106]
[1765641024941,11.3965,3105.2,3105.1,69.65066266]
[1765641025141,16.9813,3105.2,3105.1,72.06815106]
[1765641025348,11.3965,3105.2,3105.1,72.06815106]
[1765641025551,6.0934,3105.2,3105.1,72.06815106]
[1765641027952,6.0934,3105.2,3105.1,77.84189739]
[1765641031554,5.3814,3105.7,3105.6,9.57128]
[1765641031749,12.70925873,3106.0,3105.9,4.83797]
[1765641032052,12.70925873,3106.0,3105.9,21.0007142]
[1765641032254,23.87585873,3106.0,3105.9,21.0007142]
[1765641032751,18.34285873,3106.0,3105.9,26.8864584]
[1765641032949,12.96145873,3106.0,3105.9,26.8864584]
[1765641033149,23.87585873,3106.0,3105.9,22.2094584]
[1765641034554,23.87585873,3106.0,3105.9,27.6369584]
[1765641035354,12.96145873,3106.0,3105.9,27.6369584]
[1765641035555,23.87585873,3106.0,3105.9,27.6369584]
[1765641036354,23.87585873,3106.0,3105.9,22.2094584]
[1765641037154,12.96145873,3106.0,3105.9,27.6369584]
[1765641037557,18.34285873,3106.0,3105.9,27.6369584]
[1765641037759,23.87585873,3106.0,3105.9,27.6369584]
[1765641038059,12.96145873,3106.0,3105.9,27.6369584]
[1765641038865,11.16915873,3106.0,3105.9,31.30122661]
[1765641039952,11.16915873,3106.0,3105.9,31.29975305]
[1765641041448,5.26743475,3106.0,3105.9,75.72377531]
[1765641041850,5.26743475,3106.0,3105.9,81.49752164]
[1765641042054,0.00483177,3106.3,3106.2,10.40315]
[1765641042256,0.00483177,3106.3,3106.2,12.81916484]
[1765641042458,4.32892481,3106.3,3106.2,16.30430856]
[1765641043054,4.32892481,3106.3,3106.2,31.25430856]
[1765641043255,17.3838,3107.0,3106.9,11.01541]
[1765641043452,17.3838,3107.0,3106.9,27.17441742]
[1765641043654,23.5609,3107.0,3106.9,27.17441742]
[1765641043851,10.9144,3106.1,3106.0,5.77374633]
[1765641044154,10.9144,3105.4,3105.3,0.16099]
[1765641044348,14.12634986,3105.4,3105.3,15.1191542]
[1765641044756,14.12634986,3105.4,3105.3,20.5461542]
[1765641044956,3.21194986,3105.4,3105.3,29.39737016]
[1765641045154,15.25824986,3105.4,3105.3,29.39737016]
[1765641045354,12.05044986,3105.4,3105.3,32.60517016]
[1765641046056,0.00414986,3105.4,3105.3,32.60517016]
[1765641046252,9.3377389,3105.5,3105.4,11.01549]
[1765641046459,11.9864,3106.0,3105.9,11.01547]
[1765641046659,17.5194,3106.0,3105.9,28.38948484]
[1765641046964,23.7166,3106.0,3105.9,31.89095486]
[1765641047361,18.18636024,3106.0,3105.9,31.89095486]
[1765641051770,23.71936024,3106.0,3105.9,31.89095486]
[1765641051967,18.18636024,3106.0,3105.9,31.89095486]
[1765641054280,23.71936024,3106.0,3105.9,31.89095486]
[1765641055376,23.71936024,3106.0,3105.9,16.32697742]
[1765641055674,23.71936024,3106.0,3105.9,22.99677742]
[1765641056278,23.71936024,3106.0,3105.9,22.99277742]
[1765641056675,23.71936024,3106.0,3105.9,29.22607742]
[1765641058166,18.18636024,3106.0,3105.9,29.22607742]
[1765641058678,24.88016024,3106.0,3105.9,29.22607742]
[1765641059677,18.18636024,3106.0,3105.9,29.22607742]
[1765641060378,14.97856024,3106.0,3105.9,29.22607742]
[1765641060578,14.97856024,3106.0,3105.9,28.01807]
[1765641060878,21.67236024,3106.0,3105.9,29.22607742]
[1765641063386,14.97856024,3106.0,3105.9,29.22607742]
[1765641064977,6.19996024,3106.0,3105.9,30.43408484]
[1765641065182,6.19996024,3106.0,3105.9,33.87840875]
[1765641065486,6.19996024,3106.0,3105.9,32.67040133]
[1765641065487,16.63436024,3106.0,3105.9,32.67040133]
[1765641065678,26.53596024,3106.0,3105.9,26.43510133]
[1765641066278,26.53596024,3106.0,3105.9,32.66840133]
[1765641067083,26.53596024,3106.0,3105.9,26.43510133]
[1765641067587,26.53596024,3106.0,3105.9,32.66840133]
[1765641068290,9.40776024,3106.0,3105.9,33.87640875]
[1765641068486,6.19996024,3106.0,3105.9,33.87640875]
[1765641068682,4.21729446,3106.0,3105.9,33.87640875]
[1765641068989,8.15936024,3106.0,3105.9,33.87640875]
[1765641071492,0.00483177,3106.3,3106.2,13.06405]
[1765641071695,0.00483177,3106.3,3106.2,30.43206484]
[1765641071885,0.00483177,3106.3,3106.2,32.85197111]
[1765641072086,0.00483177,3106.3,3106.2,73.65197111]
[1765641072483,0.0077485,3106.3,3106.2,73.65197111]
[1765641075393,0.0077485,3106.3,3106.2,74.85997853]
[1765641075590,4.9233,3106.5,3106.4,1.05514]
[1765641075788,4.9233,3106.5,3106.4,3.4701897]
[1765641075988,4.9233,3106.5,3106.4,6.85698873]
[1765641076189,8.6279,3106.5,3106.4,6.85698873]
[1765641076386,8.6279,3106.5,3106.4,47.65698873]
[1765641076586,8.63158809,3106.5,3106.4,47.65698873]
[1765641077890,8.63158809,3106.5,3106.4,46.44961952]
[1765641079391,4.92698809,3106.5,3106.4,46.44961952]
[1765641079695,4.92698809,3106.5,3106.4,47.65730001]
[1765641081091,0.00483177,3106.8,3106.7,0.37082]
[1765641081395,0.00483177,3106.8,3106.7,19.87722679]
[1765641082187,0.00841383,3106.8,3106.7,19.87722679]
[1765641085098,0.00841383,3106.8,3106.7,22.47367297]
[1765641085291,6.0067,3106.9,3106.8,1.24872]
[1765641085496,3.2078,3107.3,3107.2,1.1907]
[1765641085693,3.2078,3107.3,3107.2,18.55006098]
[1765641085892,3.2078,3107.3,3107.2,21.94959165]
[1765641086095,8.9416,3107.3,3107.2,21.94959165]
[1765641086398,5.75338244,3107.3,3107.2,62.74959165]
[1765641086891,5.42278244,3107.3,3107.2,62.74959165]
[1765641088496,11.86748244,3107.3,3107.2,62.74959165]
[1765641088703,18.58208244,3107.3,3107.2,59.30343067]
[1765641089195,18.58208244,3107.3,3107.2,60.51011116]
[1765641092197,13.1593,3107.1,3107.0,1.98423067]
[1765641092397,13.1593,3107.1,3107.0,15.96]
[1765641092596,21.3915,3107.1,3107.0,19.48466782]
[1765641092903,21.3915,3107.1,3107.0,60.28466782]
[1765641093603,21.3915,3107.1,3107.0,60.44557782]
[1765641095203,21.3915,3107.1,3107.0,44.48557782]
[1765641095407,21.3915,3107.1,3107.0,15.10391]
[1765641095703,24.5993,3107.1,3107.0,15.10391]
[1765641096394,24.5993,3107.1,3107.0,0.16091]
[1765641096594,24.5993,3107.1,3107.0,15.10391]
[1765641098406,24.5993,3107.1,3107.0,16.59991]
[1765641098802,24.5993,3107.1,3107.0,22.7123508]
[1765641100402,11.44,3107.1,3107.0,22.7123508]
[1765641101009,17.8847,3107.1,3107.0,63.5123508]
[1765641101205,24.5993,3107.1,3107.0,62.30467031]
[1765641101510,24.5993,3107.1,3107.0,60.95377031]
[1765641106718,11.44,3107.1,3107.0,60.95377031]
[1765641107615,17.8847,3107.1,3107.0,60.95377031]
[1765641109715,11.44,3107.1,3107.0,60.95377031]
[1765641110121,17.8847,3107.1,3107.0,60.95377031]
[1765641110518,11.44,3107.1,3107.0,60.95377031]
[1765641111519,11.44,3107.1,3107.0,62.16123151]
[1765641113218,8.2322,3107.1,3107.0,62.16123151]
[1765641115128,0.00308244,3107.3,3107.2,0.7387]
[1765641115428,0.00308244,3107.3,3107.2,4.47263773]
[1765641115630,6.31238244,3107.3,3107.2,4.47263773]
[1765641115823,6.31238244,3107.3,3107.2,45.27263773]
[1765641116027,6.31238244,3107.3,3107.2,46.48009893]
[1765641120234,6.31238244,3107.3,3107.2,45.27263773]
[1765641120430,6.31238244,3107.3,3107.2,61.42109893]
[1765641125342,19.35828244,3107.3,3107.2,3.89483773]
[1765641125540,19.35828244,3107.3,3107.2,0.1609]
[1765641125746,19.35828244,3107.3,3107.2,11.346]
[1765641125946,19.35828244,3107.3,3107.2,9.28773689]
[1765641126147,16.8743,3107.0,3106.9,0.00483177]
[1765641126349,20.0821,3107.0,3106.9,14.94583177]
[1765641126549,34.4837,3107.0,3106.9,14.94583177]
[1765641128651,30.6553,3107.0,3106.9,28.18374177]
[1765641129053,34.4837,3107.0,3106.9,28.18374177]
[1765641129253,34.4837,3107.0,3106.9,21.41124177]
[1765641129465,34.4837,3107.0,3106.9,15.10674177]
[1765641134663,34.4837,3107.0,3106.9,21.41124177]
[1765641134961,34.4837,3107.0,3106.9,15.10674177]
[1765641137758,34.4837,3107.0,3106.9,28.18374177]
[1765641138058,34.4837,3107.0,3106.9,21.41124177]
[1765641138358,34.4837,3107.0,3106.9,15.10674177]
[1765641139865,34.4837,3107.0,3106.9,16.3145758]